Cogmind - Beta 14 *** ADVENTURER MODE // 2024.08.16 @ 02:30:48 Player: KURIIRI Result: Destroyed by S-43 Plague with Heavy Machine Gun Performance ------------- Evolutions (6) 3000 Regions Visited (16) 3200 Robots Destroyed (136) 680 Value Destroyed (4897) 4897 Prototype IDs (64) 1280 Alien Tech Used (2) 400 Bonus (590) 590 TOTAL SCORE: 14047 Bonus ------- Follower Combat Kills 74 Aligned with FarCom 300 Met Zhirov 300 Friendly Fire -84 Cogmind --------- Core Integrity 0/1150 Matter 214/300 Energy 99/100 System Corruption 0% Temperature Cool (0) Movement Core (50) Location -3/Proximity Caves Parts ------- > --- POWER (2) -------- (None) > --- PROPULSION (6) --- (None) > --- UTILITY (8) ------ Advanced Reaction Control System Improved Hacking Suite > --- WEAPON (3) ------- (None) > --- INVENTORY (5) ---- Cryofiber Web Advanced Reaction Control System Improved Utility Shielding Advanced Hacking Suite Peak State ------------ > --- POWER ------------ Micro Fission Core Particle Reactor > --- PROPULSION ------- Cooled VTOL Module Cooled Nuclear Pulse Thruster Field Propulsion Array Field Propulsion Array > --- UTILITY ---------- Medium Storage Unit Advanced Weight Redist. System Advanced Targeting Computer Transmission Jammer Advanced Reaction Control System Graphene Brace Improved Hacking Suite System Shield > --- WEAPON ----------- Smartbomb Launcher Plasma Sword > --- INVENTORY -------- Micro Fission Core Micro Fission Core Cooled VTOL Module Cryofiber Web Advanced Cooling System Advanced Reaction Control System Matter Neutralizer Matter Neutralizer Matter Neutralizer Shock Maul [Rating: 112] Favorites ----------- Power Ion Engine Engine Ion Engine Power Core Nuclear Core Reactor Light Quantum Reactor Propulsion Aluminum Leg Treads Improved Treads Leg Aluminum Leg Hover Unit Cooled Gravmag System Flight Unit Cooled VTOL Module Utility Medium Storage Unit Device Transmission Jammer Storage Medium Storage Unit Processor Advanced Targeting Computer Hackware Improved Hacking Suite Protection Improved Propulsion Shielding Weapon Heavy Machine Gun Energy Gun Particle Gun Energy Cannon Plasma Cannon Ballistic Gun Heavy Machine Gun Launcher Rocket Launcher Special Weapon CPS Tube Impact Weapon Shock Maul Slashing Weapon Ripper Build | -11 -10 -10 -10 -9 -8 -7 -6 -6 -5 -5 -5 -4 -4 -4 -4 -3 ------- Run | Yrd Mat Min Exi Min Mat Fac Fac Ext Fac Upp Upp Fac Upp Upp Zhi Pro Slots Evolved 12 | . . . . . 4 2 2 . 2 . . 2 . . . . Power 1 | . . . . . . . 1 . . . . . . . . . Propulsion 4 | . . . . . 2 1 . . . . . 1 . . . . Utility 6 | . . . . . 1 1 1 . 2 . . 1 . . . . Weapon 1 | . . . . . 1 . . . . . . . . . . . Parts Attached 133 | 6 9 8 . 5 8 4 11 2 21 2 . 14 8 13 18 4 Power 21 | 1 1 . . . 2 . 1 1 2 . . 2 5 2 3 1 Engine 3 | 1 1 . . . . . . . . . . 1 . . . . Core 13 | . . . . . 2 . 1 1 2 . . 1 4 1 . 1 Reactor 5 | . . . . . . . . . . . . . 1 1 3 . Propulsion 32 | 2 2 2 . . 1 1 1 . 6 1 . 2 . 5 9 . Treads 1 | . . . . . . . . . 1 . . . . . . . Leg 6 | 2 2 2 . . . . . . . . . . . . . . Wheel . | . . . . . . . . . . . . . . . . . Hover 3 | . . . . . . . . . . . . . . . 3 . Flight 22 | . . . . . 1 1 1 . 5 1 . 2 . 5 6 . Utility 36 | 1 2 . . . 3 3 4 . 5 1 . 5 2 4 5 1 Device 17 | . 1 . . . 1 1 1 . 1 1 . 4 2 1 3 1 Storage 3 | 1 1 . . . . . . . . . . . . . 1 . Processor 1 | . . . . . . . . . 1 . . . . . . . Hackware 4 | . . . . . 1 . 1 . 1 . . 1 . . . . Protection 11 | . . . . . 1 2 2 . 2 . . . . 3 1 . Artifact . | . . . . . . . . . . . . . . . . . Weapon 44 | 2 4 6 . 5 2 . 5 1 8 . . 5 1 2 1 2 Energy Gun 8 | . 2 3 . 1 . . . . 1 . . . 1 . . . Energy Cannon 5 | . . . . . 2 . . . . . . 1 . . . 2 Ballistic Gun 11 | 2 2 1 . 1 . . 3 . 2 . . . . . . . Ballistic Cannon . | . . . . . . . . . . . . . . . . . Launcher 7 | . . 2 . 2 . . . 1 1 . . 1 . . . . Special Weapon 2 | . . . . . . . . . . . . . . 2 . . Impact Weapon 7 | . . . . . . . 2 . 3 . . 1 . . 1 . Slashing Weapon 4 | . . . . 1 . . . . 1 . . 2 . . . . Piercing Weapon . | . . . . . . . . . . . . . . . . . Special Melee Weapon . | . . . . . . . . . . . . . . . . . Unidentified Prototypes 13 | . 1 . . . . . 3 . 2 . . 2 . . 5 . Parts Lost 31 | . . . . . . . . 1 7 . . . 6 3 . 14 Power 9 | . . . . . . . . 1 2 . . . 3 . . 3 Propulsion 8 | . . . . . . . . . . . . . 1 2 . 5 Utility 10 | . . . . . . . . . 4 . . . 1 . . 5 Weapon 4 | . . . . . . . . . 1 . . . 1 1 . 1 Highest Loss Streak 9 | . . . . . . . . 1 5 . . . 3 2 . 9 To Critical Strikes 1 | . . . . . . . . . . . . . . . . 1 Average Slot Usage (%) 81 | . 89 100 100 100 70 74 75 79 70 67 70 78 78 80 80 38 Engine 5 | . 14 14 14 14 3 . . . . . . 1 . . . . Core 5 | . . . . . 5 7 9 13 10 5 5 6 8 6 5 2 Leg 9 | . 28 28 28 28 . . . . . . . . . . . . Flight 9 | . . . . . 8 13 13 13 10 28 29 21 20 20 23 1 Device 11 | . 4 14 14 14 7 6 8 12 6 9 11 19 23 16 13 11 Storage 8 | . 14 14 14 14 9 7 6 6 5 5 5 5 5 5 5 3 Processor 1 | . . . . . . . . . 4 5 5 5 2 . . . Hackware 4 | . . . . . 1 7 6 6 8 5 5 9 10 10 10 9 Protection 3 | . . . . . 7 7 10 6 2 . . . . 8 10 1 Energy Gun 6 | . 11 27 28 12 . . . . 1 . . . . . . . Energy Cannon 2 | . . . . . 16 15 3 . . . . . . . . 4 Ballistic Gun 3 | . 16 . . . . . 8 13 9 . . . . . . . Launcher 2 | . . . . 14 . . . . . . . 1 1 . . . Impact Weapon 1 | . . . . . . . 3 5 4 5 5 3 . . 1 2 Slashing Weapon 2 | . . . . . 9 7 2 . . . . 3 5 5 3 . Peak Build Rating 112 | 6 9 9 12 15 57 64 82 83 93 59 59 109 112 101 91 88 Average Rating 54 | 4 7 8 10 12 53 62 72 82 83 57 59 95 98 94 85 37 On Entrance 51 | . 6 8 9 12 15 56 64 82 75 56 59 59 109 87 89 88 Naked Turns . | . . . . . . . . . . . . . . . . . Heaviest Build 53 | 12 21 22 22 23 38 39 47 48 46 21 21 39 50 53 53 49 Greatest Support 59 | 20 20 20 20 20 50 55 55 57 59 34 34 55 55 43 35 18 Greatest Overweight (x) 16 | 1 1 1 1 1 1 . . . 1 . . . . 2 16 16 Average Overweight (x) . | . . 1 1 1 . . . . . . . . . . 1 1 Largest Inventory Capacity 10 | 8 10 10 10 10 10 10 10 10 10 10 10 10 10 10 10 10 Average Capacity 9 | 7 8 10 10 10 10 10 10 10 10 10 10 10 10 10 10 8 Most Carried 10 | 5 8 9 10 10 10 10 10 10 10 10 8 10 10 10 10 10 Average Carried 9 | 2 4 7 8 9 9 9 8 9 9 9 8 8 9 9 9 6 Final Capacity 10 | 8 10 10 10 10 10 10 10 10 10 10 10 10 10 10 10 5 Final Carried 10 | 2 7 7 10 10 10 10 9 10 7 8 8 9 9 10 10 4 Class Distribution -------------------- 40% | Hacker-Mutant 16% | Scavenger-Skirmisher 13% | Scavenger-Mutant 12% | Hacker-Sprinter 7% | Mutant 4% | Hacker-Ninja Dominant Class ---------------- Mutant | -10/Materials Scavenger-Mutant | -10/Mines Scavenger-Mutant | -10/Exiles Scavenger-Skirmisher | -9/Mines Mutant | -8/Materials Hacker-Mutant | -7/Factory Hacker-Mutant | -6/Factory Hacker-Mutant | -6/Extension Hacker-Mutant | -5/Factory Hacker-Sprinter | -5/Upper Caves Hacker-Sprinter | -5/Upper Caves Hacker-Sprinter | -4/Factory Hacker-Sprinter | -4/Upper Caves Hacker-Mutant | -4/Upper Caves Hacker-Mutant | -4/Zhirov Hacker-Mutant | -3/Proximity Caves Resources | -11 -10 -10 -10 -9 -8 -7 -6 -6 -5 -5 -5 -4 -4 -4 -4 -3 ----------- Run | Yrd Mat Min Exi Min Mat Fac Fac Ext Fac Upp Upp Fac Upp Upp Zhi Pro Matter Collected 2021 | 224 217 186 . 198 80 40 110 45 237 61 . 156 254 130 . 83 Remotely . | . . . . . . . . . . . . . . . . . Salvage Created 5795 | . 346 97 . 212 658 438 303 859 675 18 . 815 727 448 . 199 Parts 265 | . 25 5 . 22 38 36 8 15 24 3 . 22 30 25 . 12 Haulers Intercepted 11 | . 1 . . . 1 2 2 1 1 . . 3 . . . . Recyclers Shooed 1 | . . . . . . . . . . . . 1 . . . . Parts Field Recycled . | . . . . . . . . . . . . . . . . . Retrieved Matter . | . . . . . . . . . . . . . . . . . Parts Self-Destructed 56 | . . . . . . . . . . . . . 26 22 . 8 Prevented 5 | . . . . . . . . . . . . . . 3 . 2 Kills | -11 -10 -10 -10 -9 -8 -7 -6 -6 -5 -5 -5 -4 -4 -4 -4 -3 ------- Run | Yrd Mat Min Exi Min Mat Fac Fac Ext Fac Upp Upp Fac Upp Upp Zhi Pro Combat Hostiles Destroyed 98 | . 7 5 . 12 10 5 2 8 14 1 . 2 19 7 . 6 Melee 43 | . . . . 1 7 5 2 2 5 1 . 2 8 7 . 3 Guns 15 | . 7 2 . 2 . . . . 4 . . . . . . . Cannons 5 | . . . . . 3 . . . . . . . . . . 2 AOE 25 | . . 3 . 9 . . . . 2 . . . 11 . . . Classes Destroyed 14 | . 5 . . 4 4 1 . . . . . . . . . . Worker 7 | . . . . 2 1 . . . . . . 4 . . . . Tunneler 1 | . . . . 1 . . . . . . . . . . . . Hauler 11 | . 1 . . . 1 2 2 1 1 . . 3 . . . . Recycler 4 | . 1 . . . . . . 2 . . . 1 . . . . Operator 5 | . . . . . 1 2 . 2 . . . . . . . . Watcher 11 | . 2 . . . 2 2 1 . 1 . . 3 . . . . Swarmer 37 | . 3 3 . 8 . . . . 5 1 . . 7 4 . 6 Grunt 30 | . 4 2 . 2 6 1 . 5 . . . 1 7 2 . . Brawler 1 | . . . . 1 . . . . . . . . . . . . Duelist 1 | . . . . . 1 . . . . . . . . . . . Sentry 11 | . . . . . 2 1 1 1 1 . . 1 3 1 . . Hunter 4 | . . . . . 1 . . 2 1 . . . . . . . Programmer 13 | . . . . . . 3 1 . 7 . . . 2 . . . Assembled 1 | . . . . 1 . . . . . . . . . . . . Best Kill Streak 14 | . 4 3 . 7 2 1 3 5 5 1 . 2 14 4 . 3 Combat Bots Only 14 | . 4 3 . 4 2 1 2 3 5 1 . 1 14 4 . 3 Max Kills in Single Turn 4 | . 2 2 . 3 1 1 1 1 4 1 . 1 3 1 . 1 Gunslinging 1 | . 1 . . . . . . . . . . . . . . . Exploded 3 | . . 2 . 2 . . . . 2 . . . 3 . . . Melee 1 | . . . . 1 1 1 1 1 1 1 . 1 1 1 . 1 Uniques/NPCs Destroyed . | . . . . . . . . . . . . . . . . . Combat | -11 -10 -10 -10 -9 -8 -7 -6 -6 -5 -5 -5 -4 -4 -4 -4 -3 -------- Run | Yrd Mat Min Exi Min Mat Fac Fac Ext Fac Upp Upp Fac Upp Upp Zhi Pro Hostile Shots Fired 788 | . 31 15 . 17 36 49 45 102 128 2 4 18 139 72 . 130 Missed 297 | . 5 2 . 5 16 22 20 42 43 2 2 12 77 19 . 30 Damage Taken 6679 | . 245 125 . 118 245 245 235 822 1262 . 20 139 976 671 . 1576 Core 1476 | . 46 39 . 5 23 42 8 42 128 . 11 92 292 160 . 588 Absorbed by Shields 419 | . . . . . . . . 142 . . . . . 21 . 256 Redirected to Shielding 659 | . . . . . 74 85 13 . 209 . . . . 68 . 210 Ignored by Resistances 1984 | . 75 39 . 37 72 57 50 275 355 . 18 39 268 198 . 501 Regen/Repaired (Parts) 216 | . . . . . . 74 . . 142 . . . . . . . Core Remaining (%) 88 | 100 . . . 64 95 94 . 94 . . 86 . . . . . Volleys Fired 90 | . 29 6 . 14 16 5 . 3 4 . . . 6 2 . 5 Largest 3 | . 2 2 . 2 2 2 . 3 3 . . . 1 1 . 1 Hottest 160 | . 85 130 . 98 160 160 . 93 111 . . . 46 . . 105 Shots Fired 158 | . 58 11 . 16 32 10 . 8 10 . . . 6 2 . 5 Gun 86 | . 58 8 . 6 . . . 6 8 . . . . . . . Cannon 47 | . . . . . 32 10 . . . . . . . . . 5 Launcher 23 | . . 3 . 10 . . . 2 2 . . . 6 . . . Special 2 | . . . . . . . . . . . . . . 2 . . Kinetic 57 | . 45 . . . . . . 6 6 . . . . . . . Thermal 76 | . 13 8 . 6 32 10 . . 2 . . . . . . 5 Explosive 23 | . . 3 . 10 . . . 2 2 . . . 6 . . . Electromagnetic . | . . . . . . . . . . . . . . . . . Robot Hit Streak 11 | . 11 6 . 4 7 3 . 3 3 . . . . 3 . 5 Robot Miss Streak 3 | . 1 1 . 2 2 3 . 2 1 . . . . . . 2 Penetration Max . | . . . . . . . . . . . . . . . . . Secondary Targets 1 | . 1 . . . . . . . . . . . . . . . Max Gunslinging Chain 1 | . 1 . . . . . . . . . . . . . . . Shots Hit Robots 280 | . 43 10 . 8 41 32 8 23 46 1 . 15 27 18 . 8 Core Hits 147 | . 20 6 . 17 18 11 3 4 13 . . 7 30 12 . 6 Critical Kills 9 | . . . . . . . 2 . 3 . . 2 . . . 2 Critical Parts Destroyed 23 | . . . . . . . 1 6 14 . . 2 . . . . Critical Strikes 51 | . 2 1 . 1 5 3 3 6 17 . . 4 3 4 . 2 Burn 4 | . 2 1 . 1 . . . . . . . . . . . . Smash 32 | . . . . . . . 3 6 17 . . 4 . . . 2 Sever 15 | . . . . . 5 3 . . . . . . 3 4 . . Melee Attacks 304 | . . . . 8 42 44 29 33 61 1 . 26 33 19 . 8 Impact 130 | . . . . . . . 18 33 59 1 . 11 . . . 8 Slashing 174 | . . . . 8 42 44 11 . 2 . . 15 33 19 . . Piercing . | . . . . . . . . . . . . . . . . . Sneak Attacks 27 | . . . . . 4 4 2 4 3 . . 9 . . . 1 Combat Hostiles 7 | . . . . . 1 1 . 2 2 . . . . . . 1 Follow-up Attacks 1 | . . . . . . . . . . . . 1 . . . . Damage Inflicted 14900 | . 418 321 . 783 1543 1403 596 1715 2694 64 . 1301 2883 765 . 414 Guns 827 | . 418 116 . 99 . . . 68 126 . . . . . . . Cannons 774 | . . . . . 509 154 . . . . . . . . . 111 Explosions 2568 | . . 204 . 573 . . . 178 80 . . . 1533 . . . Melee 10562 | . . . . 105 1034 1198 512 1469 2488 64 . 1301 1350 765 . 276 Ramming 169 | . . 1 . 6 . 51 84 . . . . . . . . 27 Kinetic 460 | . 325 . . . . . . 68 67 . . . . . . . Thermal 1525 | . 93 116 . 99 509 154 . . 59 . . . 384 . . 111 Explosive 2184 | . . 204 . 573 . . . 178 80 . . . 1149 . . . Electromagnetic . | . . . . . . . . . . . . . . . . . Impact 5418 | . . . . . . . 447 1469 2448 64 . 714 . . . 276 Slashing 5144 | . . . . 105 1034 1198 65 . 40 . . 587 1350 765 . . Piercing . | . . . . . . . . . . . . . . . . . Highest Corruption 11 | . . . . . . 4 2 2 11 11 11 . . . . . Average Corruption 2 | . . . . . . 2 1 2 1 11 11 . . . . . Corruption Purged . | . . . . . . . . . . . . . . . . . Corruption Blocked . | . . . . . . . . . . . . . . . . . Effects 33 | . . . . . . 4 4 3 14 8 . . . . . . Message Errors 6 | . . . . . . 3 . . 3 . . . . . . . Matter Fused 7 | . . . . . . . 1 1 4 1 . . . . . . Heat Flow Errors 6 | . . . . . . . 1 . . 5 . . . . . . Energy Discharges 4 | . . . . . . . 2 . 1 1 . . . . . . Data Loss (minor) 4 | . . . . . . 1 . 1 1 1 . . . . . . Data Loss (major) 4 | . . . . . . . . . 4 . . . . . . . Alerts 2 | . . . . . . . . 1 1 . . . . . . . Overload Shots . | . . . . . . . . . . . . . . . . . Overflow Damage 3070 | . . 11 . 41 49 78 168 743 1318 39 . 482 70 9 . 62 Projectiles 34 | . . . . . . 34 . . . . . . . . . . Explosions 82 | . . 11 . 18 . . . . . . . . 53 . . . Melee 2954 | . . . . 23 49 44 168 743 1318 39 . 482 17 9 . 62 Knockbacks 29 | . . . . . . . 1 8 18 . . 1 . . . 1 Impact 28 | . . . . . . . 1 8 17 . . 1 . . . 1 Kinetic . | . . . . . . . . . . . . . . . . . Secondary 1 | . . . . . . . . . 1 . . . . . . . Self-Inflicted Damage 252 | . . 32 . 34 . 51 84 38 . . . . . . . 13 Shots 5 | . . 2 . 2 . . . 1 . . . . . . . . Rammed 3 | . . . . . . . . . . . . . . . . 3 Targets Rammed 6 | . . 1 . 2 . . . . . . . . . . . 3 Kicked 3 | . . 1 . 2 . . . . . . . . . . . . Crushed . | . . . . . . . . . . . . . . . . . Highest Temperature 291 | . 92 138 . 108 205 291 192 270 156 270 240 64 58 9 . 96 Average Temperature 58 | . 27 55 . 46 64 110 107 92 61 126 170 33 10 9 . 43 Received Heat Transfer 1430 | . 201 30 . 72 135 87 45 399 183 . 18 12 117 91 . 40 Siege Activations . | . . . . . . . . . . . . . . . . . Robots Corrupted 17 | . . . . . . . 1 8 5 . . 2 . . . 1 Combat Hostiles 10 | . . . . . . . . 6 3 . . . . . . 1 Parts Fried 27 | . . . . . . . 4 9 5 . . 8 . . . 1 Impact Corruptions 79 | . . . . . . . 7 18 42 1 . 8 . . . 3 Robots Melted . | . . . . . . . . . . . . . . . . . Combat Hostiles . | . . . . . . . . . . . . . . . . . Parts Melted 6 | . 1 . . . 3 2 . . . . . . . . . . Heat Transferred 2964 | . 370 333 . 296 1000 300 . . 74 . . . 480 . . 111 Parts Sabotaged . | . . . . . . . . . . . . . . . . . Parts Stolen . | . . . . . . . . . . . . . . . . . Parts Stripped . | . . . . . . . . . . . . . . . . . Power Chain Reactions . | . . . . . . . . . . . . . . . . . Alert | -11 -10 -10 -10 -9 -8 -7 -6 -6 -5 -5 -5 -4 -4 -4 -4 -3 ------- Run | Yrd Mat Min Exi Min Mat Fac Fac Ext Fac Upp Upp Fac Upp Upp Zhi Pro Peak Influence 370 | . 216 134 . 370 264 336 288 313 281 . . 163 . . . . Initial 129 | . . 4 . . . 102 129 92 102 . . 24 . . . . Average 113 | . 109 77 . 89 114 208 186 155 93 . . 57 . . . . Maximum Alert Level 1 | . 1 . . 1 1 1 1 1 1 . . . . . . . Low Security (%) 81 | 100 77 100 . 85 85 49 50 82 86 . . 100 . . . . Level 1 18 | . 22 . . 14 14 50 49 17 13 . . . . . . . Level 2 . | . . . . . . . . . . . . . . . . . Level 3 . | . . . . . . . . . . . . . . . . . Level 4 . | . . . . . . . . . . . . . . . . . Level 5 . | . . . . . . . . . . . . . . . . . High Security . | . . . . . . . . . . . . . . . . . Max Security . | . . . . . . . . . . . . . . . . . Squads Dispatched 32 | . 2 . . . 4 7 6 4 5 . . 4 . . . . Investigation 18 | . 2 . . . 2 4 4 3 2 . . 1 . . . . Extermination 7 | . . . . . . 2 1 . 3 . . 1 . . . . Reinforcement 6 | . . . . . 1 1 1 1 . . . 2 . . . . Assault . | . . . . . . . . . . . . . . . . . Garrison 1 | . . . . . 1 . . . . . . . . . . . Intercept . | . . . . . . . . . . . . . . . . . Searches Triggered . | . . . . . . . . . . . . . . . . . Construction Impeded . | . . . . . . . . . . . . . . . . . Haulers Reinforced . | . . . . . . . . . . . . . . . . . Active Scanning Responses . | . . . . . . . . . . . . . . . . . Cargo Convoy Interrupts . | . . . . . . . . . . . . . . . . . Stealth | -11 -10 -10 -10 -9 -8 -7 -6 -6 -5 -5 -5 -4 -4 -4 -4 -3 --------- Run | Yrd Mat Min Exi Min Mat Fac Fac Ext Fac Upp Upp Fac Upp Upp Zhi Pro Distress Signals 5 | . . . . . . . . 2 1 . . 2 . . . . Communications Jammed 43 | . . . . . . . . 32 7 . . 4 . . . . Distress Signals 30 | . . . . . . . . 19 7 . . 4 . . . . Times Spotted 179 | . 9 5 . 11 16 19 7 19 27 1 3 16 21 16 . 9 Peak Tracking Total 11 | . 4 3 . 4 3 5 4 5 6 1 3 11 9 4 . 5 Tactical Retreats 22 | . . . . 2 . 2 4 1 5 . . 2 3 3 . . Traps | -11 -10 -10 -10 -9 -8 -7 -6 -6 -5 -5 -5 -4 -4 -4 -4 -3 ------- Run | Yrd Mat Min Exi Min Mat Fac Fac Ext Fac Upp Upp Fac Upp Upp Zhi Pro Traps Triggered 4 | . . . . . 1 1 . 2 . . . . . . . . Indirectly . | . . . . . . . . . . . . . . . . . Trap Hack Attempts . | . . . . . . . . . . . . . . . . . Triggered . | . . . . . . . . . . . . . . . . . Disarmed . | . . . . . . . . . . . . . . . . . Reprogrammed . | . . . . . . . . . . . . . . . . . Reused . | . . . . . . . . . . . . . . . . . Traps Extracted . | . . . . . . . . . . . . . . . . . Installed . | . . . . . . . . . . . . . . . . . Triggered 4 | . . . . . . . . . . . . . 4 . . . Machines | -11 -10 -10 -10 -9 -8 -7 -6 -6 -5 -5 -5 -4 -4 -4 -4 -3 ---------- Run | Yrd Mat Min Exi Min Mat Fac Fac Ext Fac Upp Upp Fac Upp Upp Zhi Pro Machines Disabled 13 | . . . . 1 1 1 . 2 . . . . 8 . . . Max in Single Turn 5 | . . . . 1 1 1 . 1 . . . . 5 . . . Garrison Access 1 | . . . . . . 1 . . . . . . . . . . Machines Repaired . | . . . . . . . . . . . . . . . . . Machines Dismantled . | . . . . . . . . . . . . . . . . . Machines Sabotaged . | . . . . . . . . . . . . . . . . . Overloaded Fab Kills . | . . . . . . . . . . . . . . . . . Hacking | -11 -10 -10 -10 -9 -8 -7 -6 -6 -5 -5 -5 -4 -4 -4 -4 -3 --------- Run | Yrd Mat Min Exi Min Mat Fac Fac Ext Fac Upp Upp Fac Upp Upp Zhi Pro Machines Accessed 59 | . 3 . 3 . 8 12 6 6 5 . . 4 1 2 9 . Terminals 35 | . 3 . . . 7 8 5 6 3 . . 2 . 1 . . Fabricators 2 | . . . . . . . . . 1 . . 1 . . . . Repair Stations 3 | . . . . . . 1 1 . 1 . . . . . . . Recycling Units 1 | . . . . . . . . . . . . 1 . . . . Scanalyzers 2 | . . . . . 1 1 . . . . . . . . . . Garrison Access 2 | . . . . . . 2 . . . . . . . . . . Total Hacks 203 | . 14 . 25 . 27 28 18 16 15 . . 9 1 2 48 . Successful 132 | . 6 . 25 . 16 10 6 6 8 . . 4 1 2 48 . Failed 70 | . 7 . . . 11 18 12 10 7 . . 5 . . . . Catastrophic 10 | . 1 . . . . 3 3 1 2 . . . . . . . Database Lockouts 1 | . 1 . . . . . . . . . . . . . . . Manual 70 | . 8 . 3 . 19 13 14 5 3 . . 4 . . 1 . Terminals 100 | . 14 . . . 23 21 15 16 6 . . 4 . 1 . . Fabricators 6 | . . . . . . . . . 4 . . 2 . . . . Repair Stations 10 | . . . . . . 2 3 . 5 . . . . . . . Recycling Units 3 | . . . . . . . . . . . . 3 . . . . Scanalyzers 6 | . . . . . 4 2 . . . . . . . . . . Garrison Access 3 | . . . . . . 3 . . . . . . . . . . Terminal Hacks 109 | . 6 . 25 . 12 3 4 6 1 . . 1 1 2 48 . Record 62 | . . . 24 . . . . 1 . . . . . 1 36 . Part Schematic 7 | . . . . . 2 . 1 . . . . . . . 4 . Robot Analysis 8 | . 2 . . . 2 . . . . . . . . . 4 . Prototype ID Bank 13 | . 2 . . . 4 2 . . 1 . . . . . 4 . Open Door 7 | . . . . . . . 1 4 . . . . 1 1 . . Open DSF 1 | . . . . . . 1 . . . . . . . . . . Level Access Points 1 | . . . . . 1 . . . . . . . . . . . Branch Access Points 3 | . 1 . . . 1 . . . . . . 1 . . . . Terminal Index 3 | . 1 . . . 1 . 1 . . . . . . . . . Recall Investigation 1 | . . . . . . . 1 . . . . . . . . . Recall Reinforcements 1 | . . . . . 1 . . . . . . . . . . . Zone Layout 1 | . . . . . . . . 1 . . . . . . . . Derelict Proto ID Bank 1 | . . . 1 . . . . . . . . . . . . . Fabricator Hacks 4 | . . . . . . . . . 2 . . 2 . . . . Load Schematic 2 | . . . . . . . . . 1 . . 1 . . . . Build 2 | . . . . . . . . . 1 . . 1 . . . . Repair Station Hacks 7 | . . . . . . 2 1 . 4 . . . . . . . Scan Component 4 | . . . . . . 1 1 . 2 . . . . . . . Repair 3 | . . . . . . 1 . . 2 . . . . . . . Recycling Unit Hacks 1 | . . . . . . . . . . . . 1 . . . . Report Inventory 1 | . . . . . . . . . . . . 1 . . . . Scanalyzer 6 | . . . . . 4 2 . . . . . . . . . . Insert Component 3 | . . . . . 2 1 . . . . . . . . . . Analyze 3 | . . . . . 2 1 . . . . . . . . . . Garrison Access Hacks 1 | . . . . . . 1 . . . . . . . . . . Seal Access 1 | . . . . . . 1 . . . . . . . . . . Unauthorized Hacks 4 | . . . . . . 2 1 . 1 . . . . . . . Terminals 4 | . . . . . . 2 1 . 1 . . . . . . . Assimilate 4 | . . . . . . 2 1 . 1 . . . . . . . Fabricators . | . . . . . . . . . . . . . . . . . Repair Stations . | . . . . . . . . . . . . . . . . . Recycling Units . | . . . . . . . . . . . . . . . . . Scanalyzers . | . . . . . . . . . . . . . . . . . Garrison Access . | . . . . . . . . . . . . . . . . . Data Cores Recovered 2 | . . . . . . 1 . 1 . . . . . . . . Used 2 | . . . . . . 1 . 1 . . . . . . . . Hacking Detections 40 | . 3 . . . 8 11 5 4 5 . . 4 . . . . Full Trace Events 18 | . 2 . . . 2 4 4 3 2 . . 1 . . . . Feedback Events 2 | . . . . . . 2 . . . . . . . . . . Corruption 2 | . . . . . . 2 . . . . . . . . . . Feedback Blocked . | . . . . . . . . . . . . . . . . . Robot Schematics Acquired . | . . . . . . . . . . . . . . . . . Robots Built . | . . . . . . . . . . . . . . . . . Authchips . | . . . . . . . . . . . . . . . . . Time . | . . . . . . . . . . . . . . . . . Total Robot Build Rating . | . . . . . . . . . . . . . . . . . Part Schematics Acquired 9 | . . . . . 4 . 1 . . . . . . . 4 . Parts Built 1 | . . . . . . . . . 1 . . . . . . . Authchips . | . . . . . . . . . . . . . . . . . Time 120 | . . . . . . . . . 47 . . 73 . . . . Total Part Build Rating 5 | . . . . . . . . . 5 . . . . . . . Parts Repaired 3 | . . . . . . 1 . . 2 . . . . . . . Time 73 | . . . . . . 38 . . 35 . . . . . . . Parts Recycled . | . . . . . . . . . . . . . . . . . Recycled Matter . | . . . . . . . . . . . . . . . . . Retrieved Matter . | . . . . . . . . . . . . . . . . . Retrieved Components . | . . . . . . . . . . . . . . . . . Parts Scanalyzed 3 | . . . . . 2 1 . . . . . . . . . . Part Schematics Acquired 2 | . . . . . 2 . . . . . . . . . . . Parts Damaged . | . . . . . . . . . . . . . . . . . Bothacking | -11 -10 -10 -10 -9 -8 -7 -6 -6 -5 -5 -5 -4 -4 -4 -4 -3 ------------ Run | Yrd Mat Min Exi Min Mat Fac Fac Ext Fac Upp Upp Fac Upp Upp Zhi Pro Used RIF Installer . | . . . . . . . . . . . . . . . . . Robots Hacked . | . . . . . . . . . . . . . . . . . Non-combat . | . . . . . . . . . . . . . . . . . Combat . | . . . . . . . . . . . . . . . . . Robot Hacks Applied . | . . . . . . . . . . . . . . . . . Relay Couplers Released . | . . . . . . . . . . . . . . . . . Fabnet Peak Effective % . | . . . . . . . . . . . . . . . . . Robots Rewired 4 | . . . . . . . . 3 . . . 1 . . . . Allies Hacked . | . . . . . . . . . . . . . . . . . Hacks Repelled . | . . . . . . . . . . . . . . . . . Allies | -11 -10 -10 -10 -9 -8 -7 -6 -6 -5 -5 -5 -4 -4 -4 -4 -3 -------- Run | Yrd Mat Min Exi Min Mat Fac Fac Ext Fac Upp Upp Fac Upp Upp Zhi Pro Total Allies 10 | . . . . 1 . 1 . 6 1 . . 1 . . . . Largest Group 5 | . . . . 1 . 1 . 5 1 . . 1 . . . . Highest-Rated Group 283 | . . . . 31 . 26 . 283 26 . . 49 . . . . Highest-Rated Ally 159 | . . . . 31 . 26 . 159 26 . . 49 . . . . Total Orders . | . . . . . . . . . . . . . . . . . Ally Attacks 30 | . . . . . . . . 27 . . . 3 . . . . Total Damage 707 | . . . . . . . . 610 . . . 97 . . . . Kills 4 | . . . . . . . . 4 . . . . . . . . Allies Corrupted . | . . . . . . . . . . . . . . . . . Allies Melted . | . . . . . . . . . . . . . . . . . Intel | -11 -10 -10 -10 -9 -8 -7 -6 -6 -5 -5 -5 -4 -4 -4 -4 -3 ------- Run | Yrd Mat Min Exi Min Mat Fac Fac Ext Fac Upp Upp Fac Upp Upp Zhi Pro Robot Analysis Total 8 | . 2 . . . 2 . . . . . . . . . 4 . Derelict Logs Recovered 5 | . . 1 . . . . . . . . . . 2 2 . . Drone Launches . | . . . . . . . . . . . . . . . . . Drone Recoveries . | . . . . . . . . . . . . . . . . . Exploration | -11 -10 -10 -10 -9 -8 -7 -6 -6 -5 -5 -5 -4 -4 -4 -4 -3 ------------- Run | Yrd Mat Min Exi Min Mat Fac Fac Ext Fac Upp Upp Fac Upp Upp Zhi Pro Turns Passed 9902 | 52 473 571 580 1715 760 738 504 521 1617 176 12 505 515 517 377 269 Spaces Moved 9365 | 34 243 256 305 672 793 1205 879 649 1248 212 58 726 847 737 305 196 Core 202 | 9 . . . . . . . . . . . . . . 1 192 Treads . | . . . . . . . . . . . . . . . . . Legs 1505 | 25 243 256 305 672 4 . . . . . . . . . . . Wheels . | . . . . . . . . . . . . . . . . . Hover 3 | . . . . . . . . . . . . . . . 3 . Flight 7655 | . . . . . 789 1205 879 649 1248 212 58 726 847 737 301 4 Fastest Speed 11 | 50 120 190 190 190 50 39 39 34 34 11 11 21 21 28 92 50 Average Speed 65 | 109 143 190 190 190 50 40 39 38 39 25 19 31 27 53 109 111 Slowest Speed 995 | 190 190 190 190 190 190 50 39 39 92 26 26 37 28 197 995 850 Overloaded Moves 167 | . . . . . . . . 19 31 1 25 24 64 . . 3 Propulsion Burnouts . | . . . . . . . . . . . . . . . . . Robots Hopped 51 | . . . . . 8 11 5 9 8 2 . 8 . . . . Cave-ins Triggered . | . . . . . . . . . . . . . . . . . Teleports 1 | . . . . . . . . . . . . . . . 1 . Exploration Rate (%) 48 | 3 40 84 62 101 43 35 22 50 23 40 13 22 93 91 62 32 Regions Visited 16 Branch Regions 10 Pre-discovered Areas 7 | . . . 1 . . . . . . . . . 1 2 3 . Known Exits Taken 3 | . 1 . . . 1 . . . . . . 1 . . . . Unknown Exits Taken 13 | 1 . 1 1 1 . 1 1 1 1 1 1 . 1 1 1 . Scrap Searched 11 | . . 1 . 3 . . . . . 1 . . 4 2 . . Spaces Dug 110 | . . . . 39 15 11 21 2 12 . . 9 . 1 . . Terrain Destroyed 271 | . . 17 . 99 23 12 22 15 29 . . 9 42 1 . 2 Melee 72 | . . . . 1 15 11 21 2 12 . . 9 . 1 . . Projectile 10 | . . . . . 8 . . . . . . . . . . 2 AOE 187 | . . 17 . 98 . . . 13 17 . . . 42 . . . Terrain Rammed 2 | . . . . . . 1 1 . . . . . . . . . Walls Destroyed 2 | . . . . . . 1 1 . . . . . . . . . Machines Disabled . | . . . . . . . . . . . . . . . . . Actions | -11 -10 -10 -10 -9 -8 -7 -6 -6 -5 -5 -5 -4 -4 -4 -4 -3 --------- Run | Yrd Mat Min Exi Min Mat Fac Fac Ext Fac Upp Upp Fac Upp Upp Zhi Pro Total 12383 | 48 317 329 306 1081 1054 1367 986 835 2240 330 57 960 1069 829 346 229 Wait 2279 | 1 19 51 . 373 172 103 51 119 895 112 . 160 166 48 4 5 Move 9256 | 33 242 255 304 671 778 1183 868 633 1232 208 57 710 846 736 304 196 Hop 42 | . . . . . 6 10 5 6 7 1 . 7 . . . . Pick Up 105 | 8 12 4 1 4 17 7 10 1 9 3 . 18 4 5 1 1 Fast Attach 45 | . . . . . 1 2 1 . 8 1 . . 5 9 18 . Attach 59 | 6 3 3 . . 7 2 7 1 7 1 . 12 2 3 1 4 Detach 4 | . . . . . 1 . 1 . . 1 . 1 . . . . Swap 31 | . 6 5 . 5 . . 3 1 6 . . 2 1 1 1 . Drop 106 | . 6 4 1 4 14 6 10 . 11 2 . 12 6 6 17 7 Fire 90 | . 29 6 . 14 16 5 . 3 4 . . . 6 2 . 5 Melee 302 | . . . . 8 42 44 29 33 61 1 . 24 33 19 . 8 Ram 5 | . . . . . . 1 1 . . . . . . . . 3 Kick 3 | . . 1 . 2 . . . . . . . . . . . . Crush . | . . . . . . . . . . . . . . . . . Escape Stasis 15 | . . . . . . 4 . 11 . . . . . . . . Rewire 41 | . . . . . . . . 27 . . . 14 . . . . Trap . | . . . . . . . . . . . . . . . . . Miscellaneous . | . . . . . . . . . . . . . . . . . Route ------- -11/Scrapyard -10/Materials (discovered 2 exits: [*Mat] / *Min) -10/Mines (discovered 3 exits: [*Mat x2] / *Exi) -10/Exiles -9/Mines -8/Materials (discovered 3 exits: *Fac x3) -7/Factory -6/Factory (discovered 2 exits: *Fac / *Ext) -6/Extension -5/Factory -5/Upper Caves -5/Upper Caves -4/Factory (discovered 2 exits: *Upp x2) -4/Upper Caves -4/Upper Caves -4/Zhirov -3/Proximity Caves History --------- Turn | Location | Event 8 | -11/Scrapyard | Discovered new exit (range 16) 53 | -11/Scrapyard | Entered Materials 205 | -10/Materials | Central database locked down 298 | -10/Materials | Identified exit to Mines 310 | -10/Materials | Build established: Mutant 346 | -10/Materials | Discovered new exit (range 10) 526 | -10/Materials | Entered Mines 676 | -10/Mines | Build established: Scavenger-Mutant 726 | -10/Mines | Discovered new exit (range 9) 771 | -10/Mines | YI-UF0 nonchalantly dropped a Grenade Launcher on the ground 884 | -10/Mines | Learned 4 Materials zone layouts 932 | -10/Mines | Discovered new exit (range 9) 1088 | -10/Mines | Deemed a non-threat by the Exiles lab entrance 1090 | -10/Mines | Discovered new exit (range 5) 1097 | -10/Mines | Entered Exiles 1143 | -10/Exiles | Met 8R-AWN 1177 | -10/Exiles | Met EX-HEX 1230 | -10/Exiles | Met EX-BIN 1257 | -10/Exiles | Aligned with FarCom system 1259 | -10/Exiles | Given EX-Vault access code 1303 | -10/Exiles | Opened EX-Vault 1382 | -10/Exiles | Warned to stay clear of 0b10 Research branches 1455 | -10/Exiles | Found Flying Fortress v7 1551 | -10/Exiles | Met EX-DEC 1601 | -10/Exiles | Learned location of Zion (-6) 1658 | -10/Exiles | Discovered new exit (range 11) 1677 | -10/Exiles | Left Exiles lab with Flying Fortress v7 1677 | -10/Exiles | Entered Mines 1814 | -9/Mines | A weapon hastily lodged in a ceiling crevice suddenly fell to the ground 1972 | -9/Mines | Build established: Scavenger-Skirmisher 2170 | -9/Mines | Received a Rocket Launcher from a helpful Derelict 2480 | -9/Mines | Received a Mining Laser from a helpful Derelict 3058 | -9/Mines | Discovered new exit (range 6) 3279 | -9/Mines | Excavation squad dispatched 3279 | -9/Mines | A large section of the Mines collapsed 3392 | -9/Mines | Entered Materials 3392 | -8/Materials | Evolved 4 slots: Propulsion x2, Utility x1, Weapon x1 3597 | -8/Materials | Garrison activated, responded to threat 3947 | -8/Materials | Build established: Mutant 4062 | -8/Materials | Identified exit to Factory 4152 | -8/Materials | Entered Factory 4152 | -7/Factory | Evolved 2 slots: Propulsion x1, Utility x1 4237 | -7/Factory | Identified exit to DSF 4351 | -7/Factory | Build established: Hacker-Mutant 4573 | -7/Factory | Repaired Imp. Propulsion Shielding 4866 | -7/Factory | Discovered new exit (range 11) 4890 | -7/Factory | Entered another Factory area 4890 | -6/Factory | Evolved 2 slots: Power x1, Utility x1 5335 | -6/Factory | Discovered new exit (range 10) 5392 | -6/Factory | Discovered new exit (range 6) 5394 | -6/Factory | Entered Extension 5484 | -6/Extension | Rescued a captive Derelict 5754 | -6/Extension | Rescued A7 5887 | -6/Extension | Rescued a captive Derelict 5892 | -6/Extension | Spotted B-75 Beast 5898 | -6/Extension | Spotted B-75 Beast 5908 | -6/Extension | Discovered new exit (range 3) 5915 | -6/Extension | Entered Factory 5915 | -5/Factory | Accompanied by 1 ally (A7) 5915 | -5/Factory | Evolved 2 slots: Utility x2 5936 | -5/Factory | Lost 3 allies 6043 | -5/Factory | Fabricated Imp. Hacking Suite? 6827 | -5/Factory | Repaired Imp. Propulsion Shielding 6844 | -5/Factory | Repaired Rocket Launcher 6966 | -5/Factory | Build established: Hacker-Ninja 7122 | -5/Factory | Discovered new exit (range 10) 7462 | -5/Factory | Build established: Hacker-Mutant 7495 | -5/Factory | System corruption reached 10% 7520 | -5/Factory | Lost 5 parts (1p3u1w) 7532 | -5/Factory | Entered Upper Caves 7675 | -5/Upper Caves | Discovered new exit (range 14) 7708 | -5/Upper Caves | Entered another Upper Caves area 7717 | -5/Upper Caves | Discovered new exit (range 9) 7720 | -5/Upper Caves | Entered Factory 7720 | -4/Factory | Evolved 2 slots: Propulsion x1, Utility x1 7974 | -4/Factory | Discovered new exit (range 15) 7999 | -4/Factory | Discovered new exit (range 15) 8077 | -4/Factory | Fabricated Nuclear Core? 8136 | -4/Factory | Identified exit to Upper Caves 8224 | -4/Factory | Build established: Hacker-Sprinter 8225 | -4/Factory | Entered Upper Caves 8228 | -4/Upper Caves | Learned location of 1 exit from Research 8252 | -4/Upper Caves | Attracted the attention of an 0b10 base 8313 | -4/Upper Caves | Destroyed 14 combat bots 8465 | -4/Upper Caves | Attracted the attention of an 0b10 checkpoint 8735 | -4/Upper Caves | Discovered new exit (range 8) 8740 | -4/Upper Caves | Entered another Upper Caves area 8741 | -4/Upper Caves | Encountered a Warlord checkpoint 8759 | -4/Upper Caves | Lost 3 parts (2p1n) 8781 | -4/Upper Caves | Learned location of Armory (-3) 8931 | -4/Upper Caves | Attracted the attention of an 0b10 checkpoint 9138 | -4/Upper Caves | Discovered new exit (range 7) 9233 | -4/Upper Caves | Build established: Hacker-Mutant 9257 | -4/Upper Caves | Entered Zhirov 9257 | -4/Zhirov | Discovered new exit (range 3) 9276 | -4/Zhirov | Met Zhirov 9352 | -4/Zhirov | Learned location of Quarantine (-3) 9352 | -4/Zhirov | Learned location of Testing (-2) 9352 | -4/Zhirov | Learned location of Command (-1) 9358 | -4/Zhirov | Zhirov requested help retrieving the SGEMP Prototype 9529 | -4/Zhirov | Found Alien Artifact 9529 | -4/Zhirov | Identified Transdimensional Reconstructor 9529 | -4/Zhirov | Warped through subspace 9576 | -4/Zhirov | Found Alien Artifact 9576 | -4/Zhirov | Identified Integrated Reactor 9576 | -4/Zhirov | Installed Integrated Reactor, increased core energy generation (+10) 9634 | -4/Zhirov | Entered Proximity Caves 9636 | -3/Proximity Caves | Core integrity fell below 50% 9711 | -3/Proximity Caves | Lost 9 parts (2p5n2u) 9785 | -3/Proximity Caves | Spotted B-86 Titan 9836 | -3/Proximity Caves | Lost 4 parts (1p2u1w) 9880 | -3/Proximity Caves | Core integrity fell below 20% 9903 | -3/Proximity Caves | Destroyed by S-43 Plague with Heavy Machine Gun Last Messages --------------- 09808_ Dropped Corrupted Lgt. Antimatter Reactor. 09808_ Penetrated by Slug. 09808_ Dropped Graphene Brace. 09809_ Dropped Med. Storage Unit. 09810_ Dropped Matter Neutralizer. 09811_ Penetrated by Slug. 09811_ Dropped Adv. ECM Suite. 09846_ Slug penetrates Wall. 09851_ Penetrated by Slug. 09851_ Slug penetrates Wall. 09893_ System Shield destroyed. 09899_ Slammed into S-43 Plague. 09900_ Destabilizing: System interference. 09900_ Adv. Reaction Control System temporarily disabled. 09901_ Slammed into S-43 Plague. 09901_ S-43 Plague destroyed. [Achievement: Fist Fight] 09902_ Acquired 40 matter. Map ----- +----------------------------------------------------+ | ##??## #???##???## #???????????????????? | | #??# ##??????## ## ##???????????????????? | | ##?# ######## #####????????????????????? | | ### ## ## ##????????????????????? | | ## ####?????????????????? | | # #?????????????????? | | "" #### ##?????????????????? | | "" #??## #####??????????????????? | | #?#### ###??????????????????????? | | ### ### ######????????????????????????? | | "#?# ### #?????????????????????????????? | | ##?#### #?????????????????????????????? | | "#?### #??????????????????????????????? | | ### #???????????????????????????????? | | #???????????????????????????????? | | ## ## #??####??#####??????????????????? | | ## ### #?## #### ##?????????????????? | | #?# ### ##????????????????? | | #?# #????????????????? | | ## ## #???????????????? | | ### ### ### ##???????????????? | | ??####### ####?# #??###????????????????? | | ????????# ##????# *##?????????????????????? | | ???????# #?????#s ##?????????????????????? | | ## ?????? ##????## s### #???????????????? | | ##?# ?????# ##?????# @ #????????????????? | | ??? ??????# #??????# s ###????????????????? | | ???????????# #??????# ##??????????????????? | | ???????????##??????# #???????????????????? | | ???????????????????## #???????????????????? | | ????????????????????# ## #???????????????????? | | ????????????????????# #?##???????????????????? | | ????????????????????## #??????????????????????? | | ?????????????????????# #??????????????????????? | | ?????????????????????# ???????????????????????? | | ?????????????????????## ???????????????????????? | | ??????????????????????# ???????????????????????? | | ??????????????????????## ???????????????????????? | | ???????????????????????? ???????????????????????? | | ????????????????????????# ???????????????????????? | | ????????????????????????? ???????????????????????? | | ?????????????????????????????????????????????????? | | ?????????????????????????????????????????????????? | | ?????????????????????????????????????????????????? | | ?????????????????????????????????????????????????? | | ?????????????????????????????????????????????????? | | ?????????????????????????????????????????????????? | | ?????????????????????????????????????????????????? | | ?????????????????????????????????????????????????? | | ?????????????????????????????????????????????????? | +----------------------------------------------------+ Best States ------------- Heat Dissipation 64 Energy Generation 45 Energy Capacity 390 Matter Stores 300 Matter Capacity 300 Sight Range 16 Robot Scan Range 14 Terrain Scan Range 20 Terrain Scan Density 10 ECM Strength 2 Jamming Range 12 Cloak Strength 3 Additional Mass Support 9 Armor Coverage 225 Resistance: KI 20 Resistance: TH 45 Resistance: EX 20 Resistance: EM 20 Resistance: I 20 Resistance: S 20 Resistance: P 20 Propulsion Shielding 66 Utility Shielding 90 Evasion (%) 77 Targeting Accuracy 8 Recoil Reduction 1 Offensive Hacking 34 Defensive Hacking 10 Item Schematics ----------------- Adv. Targeting Computer | -8/Materials | Hacked Hacking Suite | -8/Materials | Hacked Gauss Rifle | -8/Materials | Scanalyzed Nuclear Core | -8/Materials | Scanalyzed Imp. Hacking Suite | -6/Factory | Hacked Assault Drone Bay | -4/Zhirov | Free Exp. Heat Sink | -4/Zhirov | Free Exp. Optical Array | -4/Zhirov | Free Imp. Arc Thrower | -4/Zhirov | Free Robot Schematics ------------------ None Fabricated ------------ Imp. Hacking Suite | x1 | -5/Factory Alien Tech Used ----------------- Transdimensional Reconstructor Integrated Reactor Achievements -------------- Alien Tech Can't Catch Me Cya! Deadly Force Dodgeball, But With Guns Fist Fight Subspace Traveler The Science Guy Total Silence Whoosh! Challenges ------------ None Game ------ Seed LongswordMassFlamer Manual? 0 Play Time 03:05:03 Cumulative 28.0 hours Start 2024.08.15 @ 01:32:22 End 2024.08.16 @ 02:30:48 Sessions 5 Manual Loads 0 Difficulty Adventurer Special Mode None Game No. 15 Rogue 0 Adventurer 15 Explorer 0 Win Type - Total 0 Types 0/0/0/0/0/0/0/0/0 Lore% 19 Gallery% 33 Achievement% 35 Wizard Run 0 Options --------- Layout 1 ASCII 0 Keyboard 0 Movement Numpad Keybinds 0 Fullscreen 1 Font 48/Smallcaps Map View 50x35 Zoom Use 0% Tactical HUD 1 Map Filters NONE Filters NONE Steam 1 RUN: ea500833-9b93-4283-ade3-d316221b0996